Cogmind - Beta 12 *** ADVENTURER MODE // 2023.05.28 @ 18:14:23 Player: Ms. V3-11A Result: Core destroyed Performance ------------- Evolutions (3) 1500 Regions Visited (10) 2000 Robots Destroyed (95) 475 Value Destroyed (3396) 3396 Prototype IDs (36) 720 Alien Tech Used (0) 0 Bonus (1996) 1996 TOTAL SCORE: 10087 Bonus ------- High Alert Combat Kills 36 Follower Combat Kills 227 Destroyed Z-Imprinter 1000 Triggered Deep Caves Wall 500 Exposed GOLEM Chamber 500 Friendly Fire -267 Cogmind --------- Core Integrity 0/700 Matter 300/300 Energy 84/100 System Corruption 8% Temperature Critical (668) Movement Core (150) Ox2 Location -7/Deep Caves Parts ------- > --- POWER (2) -------- (None) > --- PROPULSION (2) --- (None) > --- UTILITY (7) ------ Makeshift Hacking Suite > --- WEAPON (2) ------- Improved EM Pulse Cannon > --- INVENTORY (5) ---- Improved Shield Generator GOLEM Unit Heavy Ion Cannon Heavy Missile Launcher Peak State ------------ > --- POWER ------------ Nuclear Core Zionite Light DM Reactor > --- PROPULSION ------- Light Treads Armored Treads > --- UTILITY ---------- Experimental Heat Sink High-capacity Storage Unit Particle Charger Improved Medium Armor Plating Improved Shield Generator Makeshift Hacking Suite Makeshift Hacking Suite > --- WEAPON ----------- High-powered Field Laser Advanced EMP Blaster > --- INVENTORY -------- Makeshift Power Source Zionite Light DM Reactor Light Treads Improved Cooling System High-capacity Storage Unit Large Battery High-capacity Matter Pod Improved Light Armor Plating Improved Shield Generator Improved Shield Generator Makeshift System Restoration Module Light EM Pulse Cannon Improved EM Pulse Cannon Latent Energy Streamer Heavy Ion Cannon Heavy Ion Cannon Mini Assault Cannon Heavy Missile Launcher Rocket Array [Rating: 58] Favorites ----------- Power Light Nuclear Core Engine Deuterium Engine Power Core Light Nuclear Core Reactor Zionite Light DM Reactor Propulsion Light Treads Treads Light Treads Leg Aluminum Leg Utility Makeshift Hacking Suite Device Improved Cooling System Storage High-capacity Storage Unit Processor Advanced Targeting Computer Hackware Makeshift Hacking Suite Protection Improved Medium Armor Plating Weapon Heavy Ion Cannon Energy Gun High-powered Field Laser Energy Cannon Heavy Ion Cannon Ballistic Gun Heavy Assault Rifle Ballistic Cannon Mini Assault Cannon Launcher Advanced EMP Blaster Impact Weapon Great Maul Build | -11 -10 -10 -10 -9 -8 -7 -7 -7 -7 -7 ------- Run | Jun Mat Min Exi Min Mat Fac Low Low Zio Dee Slots Evolved 6 | . . . . . 4 2 . . . . Power 1 | . . . . . . 1 . . . . Propulsion . | . . . . . . . . . . . Utility 5 | . . . . . 4 1 . . . . Weapon . | . . . . . . . . . . . Parts Attached 98 | . 10 1 11 1 24 18 3 2 4 24 Power 14 | . 2 . 1 1 1 4 . . . 5 Engine 4 | . . . 1 . 1 1 . . . 1 Core 6 | . 2 . . 1 . 3 . . . . Reactor 4 | . . . . . . . . . . 4 Propulsion 10 | . 3 . 2 . 2 . . . . 3 Treads 9 | . 2 . 2 . 2 . . . . 3 Leg 1 | . 1 . . . . . . . . . Wheel . | . . . . . . . . . . . Hover . | . . . . . . . . . . . Flight . | . . . . . . . . . . . Utility 33 | . 3 . 2 . 12 8 1 . . 7 Device 16 | . 2 . 1 . 4 3 1 . . 5 Storage 3 | . 1 . 1 . . 1 . . . . Processor 2 | . . . . . 2 . . . . . Hackware 6 | . . . . . 3 3 . . . . Protection 6 | . . . . . 3 1 . . . 2 Artifact . | . . . . . . . . . . . Weapon 41 | . 2 1 6 . 9 6 2 2 4 9 Energy Gun 15 | . 2 1 3 . 4 2 1 1 1 . Energy Cannon 13 | . . . 2 . 2 2 . 1 1 5 Ballistic Gun 1 | . . . 1 . . . . . . . Ballistic Cannon 1 | . . . . . . 1 . . . . Launcher 10 | . . . . . 3 1 1 . 1 4 Special Weapon . | . . . . . . . . . . . Impact Weapon 1 | . . . . . . . . . 1 . Slashing Weapon . | . . . . . . . . . . . Piercing Weapon . | . . . . . . . . . . . Special Melee Weapon . | . . . . . . . . . . . Unidentified Prototypes 9 | . . . . . 3 2 . . 1 3 Corrupted Parts 5 | . 2 . . . . . . . . 3 System Corruption 22 | . 5 . . . . . . . . 17 Parts Lost 16 | . . 1 . . 2 . . . . 13 Power 2 | . . . . . . . . . . 2 Propulsion 4 | . . . . . . . . . . 4 Utility 8 | . . . . . 2 . . . . 6 Weapon 2 | . . 1 . . . . . . . 1 Highest Loss Streak 5 | . . 1 . . 1 . . . . 5 To Critical Strikes . | . . . . . . . . . . . Average Slot Usage (%) 97 | . 97 100 98 100 97 99 100 100 91 96 Engine 3 | . . . 8 4 6 6 . . . 4 Core 10 | . 13 14 5 9 2 7 15 15 15 7 Treads 17 | . 10 28 28 28 18 15 15 15 15 14 Leg 1 | . 17 . . . . . . . . . Device 16 | . 12 14 9 14 15 15 15 23 23 18 Storage 9 | . 14 14 17 14 9 7 7 7 7 7 Hackware 12 | . . . . . 12 22 22 15 15 14 Protection 5 | . . . . . 9 7 7 7 7 11 Energy Gun 10 | . 27 28 20 14 7 6 6 7 1 5 Energy Cannon 4 | . . . 3 . 6 6 7 6 1 3 Naked Turns . | . . . . . . . . . . . Heaviest Build 82 | 14 31 31 41 32 47 77 80 80 80 82 Greatest Support 43 | 20 40 40 40 40 40 40 40 40 40 43 Greatest Overweight (x) 3 | . 1 . 1 . 1 1 1 1 1 3 Average Overweight (x) . | . . . . . . 1 1 1 1 1 Largest Inventory Capacity 20 | 8 15 15 15 15 15 20 20 20 20 20 Average Capacity 17 | 8 13 15 15 15 15 16 20 20 20 19 Most Carried 20 | 5 11 15 15 15 15 20 20 20 20 20 Average Carried 16 | 5 8 13 14 14 14 16 19 19 20 19 Final Capacity 20 | 8 15 15 15 15 15 20 20 20 20 5 Final Carried 20 | 4 10 15 15 15 15 20 20 20 20 5 Class Distribution -------------------- 73% | Hacker-Mutant 13% | Scavenger-Mutant 11% | Commander-Mutant Dominant Class ---------------- Scavenger-Mutant | -10/Materials Scavenger-Mutant | -10/Mines Commander-Mutant | -10/Exiles Commander-Mutant | -9/Mines Hacker-Mutant | -8/Materials Hacker-Mutant | -7/Factory Hacker-Mutant | -7/Lower Caves Hacker-Mutant | -7/Lower Caves Hacker-Mutant | -7/Zion Hacker-Mutant | -7/Deep Caves Resources | -11 -10 -10 -10 -9 -8 -7 -7 -7 -7 -7 ----------- Run | Jun Mat Min Exi Min Mat Fac Low Low Zio Dee Matter Collected 2130 | 200 153 44 . 253 335 244 92 48 50 711 Remotely . | . . . . . . . . . . . Salvage Created 4095 | . 442 280 . 122 991 631 309 254 . 1066 Parts 169 | . 34 5 . 13 49 29 9 7 . 23 Haulers Intercepted 4 | . 1 . . . 2 1 . . . . Recyclers Shooed 1 | . . . . 1 . . . . . . Parts Field Recycled . | . . . . . . . . . . . Retrieved Matter . | . . . . . . . . . . . Parts Self-Destructed 16 | . . . . . . . 9 7 . . Prevented . | . . . . . . . . . . . Kills | -11 -10 -10 -10 -9 -8 -7 -7 -7 -7 -7 ------- Run | Jun Mat Min Exi Min Mat Fac Low Low Zio Dee Combat Hostiles Destroyed 114 | . 11 4 . 6 23 11 7 6 . 46 Guns 34 | . 11 4 . 6 7 4 . 2 . . Cannons 24 | . . . . . 10 7 3 4 . . AOE 50 | . . . . . 6 . 4 . . 40 Classes Destroyed 18 | . 3 2 . 1 2 3 1 1 . 5 Worker 4 | . . . . 1 2 1 . . . . Builder 3 | . . . . . 2 1 . . . . Tunneler 1 | . . . . . . 1 . . . . Hauler 4 | . 1 . . . 2 1 . . . . Recycler 3 | . . 1 . . 2 . . . . . Minesweeper 1 | . . . . . . . 1 . . . Operator 1 | . . . . . . 1 . . . . Swarmer 22 | . 3 . . 5 10 . 1 3 . . Grunt 34 | . 8 2 . 1 9 7 5 2 . . Brawler 1 | . . . . . . . . 1 . . Sentry 6 | . . 2 . . 3 . 1 . . . Hunter 2 | . . . . . 1 1 . . . . Programmer 3 | . . . . . . 3 . . . . Z-Light 4 | . . . . . . . . . . 4 Assembler 2 | . . . . . . . . . . 2 Assembled 35 | . . . . . . . . . . 35 Golem 6 | . . . . . . . . . . 6 Fireman 1 | . . . . . . . . . . 1 Best Kill Streak 37 | . 3 3 . 3 7 4 4 3 . 37 Combat Bots Only 35 | . 3 2 . 3 6 2 4 3 . 35 Max Kills in Single Turn 33 | . 2 1 . 1 3 3 2 1 . 33 Gunslinging 1 | . 1 . . . . . . . . . Exploded 32 | . . . . . 2 . 2 . . 32 Melee . | . . . . . . . . . . . Uniques/NPCs Destroyed 1 | . . . . . . . . . . 1 Z-Imprinter (-7/Deep Caves) Combat | -11 -10 -10 -10 -9 -8 -7 -7 -7 -7 -7 -------- Run | Jun Mat Min Exi Min Mat Fac Low Low Zio Dee Damage Taken 3914 | . 220 193 . 89 585 368 155 204 . 2100 Core 873 | . 16 24 . 37 68 49 41 26 . 612 Absorbed by Shields 765 | . . . . . 213 134 59 77 . 282 Regen/Repaired (Parts) 62 | . 62 . . . . . . . . . Core Remaining (%) 85 | 100 . . . 69 87 . . . . . Volleys Fired 209 | . 21 8 1 8 57 40 13 18 . 43 Largest 2 | . 2 2 2 2 2 2 2 2 . 2 Hottest 135 | . 105 105 125 88 121 135 135 135 . 125 Shots Fired 372 | . 41 16 6 16 107 66 24 32 . 64 Gun 200 | . 41 16 5 16 57 34 11 18 . 2 Cannon 139 | . . . 1 . 44 29 10 14 . 41 Launcher 33 | . . . . . 6 3 3 . . 21 Special . | . . . . . . . . . . . Kinetic 22 | . . . . 8 14 . . . . . Thermal 244 | . 17 9 3 8 87 63 21 32 . 4 Explosive 28 | . . . . . 6 3 3 . . 16 Electromagnetic 78 | . 24 7 3 . . . . . . 44 Robot Hit Streak 35 | . 16 14 8 10 35 19 8 18 . 20 Robot Miss Streak 2 | . 1 1 . 1 2 2 1 2 . 2 Penetration Max . | . . . . . . . . . . . Secondary Targets 5 | . 2 2 . 1 . . . . . . Max Gunslinging Chain 1 | . 1 1 . 1 . . . . . . Shots Hit Robots 282 | . 35 13 2 13 76 50 19 24 . 50 Core Hits 250 | . 19 8 1 7 44 25 16 7 . 123 Critical Kills . | . . . . . . . . . . . Critical Parts Destroyed . | . . . . . . . . . . . Critical Strikes 10 | . 2 . . . 3 2 1 1 . 1 Burn 7 | . . . . . 3 2 1 1 . . Corrupt 3 | . 2 . . . . . . . . 1 Melee Attacks 1 | . . . . . . . . . 1 . Impact 1 | . . . . . . . . . 1 . Slashing . | . . . . . . . . . . . Piercing . | . . . . . . . . . . . Sneak Attacks . | . . . . . . . . . . . Combat Hostiles . | . . . . . . . . . . . Follow-up Attacks . | . . . . . . . . . . . Damage Inflicted 10881 | . 504 289 24 211 2289 1571 753 663 . 4577 Guns 2923 | . 504 180 24 207 796 655 184 331 . 42 Cannons 2813 | . . . . . 847 552 214 332 . 868 Explosions 5104 | . . 109 . . 645 328 355 . . 3667 Melee . | . . . . . . . . . . . Ramming 41 | . . . . 4 1 36 . . . . Kinetic 223 | . . . . 91 132 . . . . . Thermal 4875 | . 239 220 13 116 1511 1535 398 663 . 180 Explosive 4340 | . . . . . 645 . 355 . . 3340 Electromagnetic 1402 | . 265 69 11 . . . . . . 1057 Impact . | . . . . . . . . . . . Slashing . | . . . . . . . . . . . Piercing . | . . . . . . . . . . . Highest Corruption 17 | . 6 6 8 8 . 1 1 1 1 17 Average Corruption 4 | . 5 6 6 8 . 1 1 1 1 10 Corruption Purged 9 | . . . . . . . . . . 9 Corruption Blocked . | . . . . . . . . . . . Effects 200 | . 27 21 47 12 . 17 5 6 1 64 Message Errors 45 | . 12 3 6 2 . 6 . 1 . 15 Matter Fused 50 | . 9 5 12 1 . 4 3 2 1 13 Heat Flow Errors 22 | . . 2 6 5 . . . . . 9 Energy Discharges 24 | . . 5 5 . . 3 . 3 . 8 Parts Rejected 1 | . 1 . . . . . . . . . Parts Fused 6 | . . 1 1 . . . . . . 4 Data Loss (minor) 19 | . 3 3 5 1 . 1 1 . . 5 Data Loss (major) 12 | . . . 6 1 . 1 . . . 4 Misfires 10 | . . 1 4 1 . . 1 . . 3 Alerts 7 | . 2 1 2 . . 2 . . . . Weapon Failures 4 | . . . . 1 . . . . . 3 Overload Shots . | . . . . . . . . . . . Overflow Damage 237 | . . . . . 59 75 . . . 103 Projectiles 15 | . . . . . 6 9 . . . . Explosions 222 | . . . . . 53 66 . . . 103 Melee . | . . . . . . . . . . . Knockbacks 1 | . . . . 1 . . . . . . Impact 1 | . . . . 1 . . . . . . Kinetic . | . . . . . . . . . . . Secondary . | . . . . . . . . . . . Self-Inflicted Damage 68 | . . . . . 49 . . . . 19 Shots 3 | . . . . . 2 . . . . 1 Rammed 5 | . . . . 1 1 3 . . . . Targets Rammed 5 | . . . . 1 1 3 . . . . Kicked . | . . . . . . . . . . . Crushed . | . . . . . . . . . . . Highest Temperature 784 | . 81 238 264 271 15 19 319 120 . 784 Average Temperature 117 | . 28 119 104 117 6 7 64 50 . 241 Received Heat Transfer 1110 | . 123 93 . 42 242 96 64 72 . 378 Effects 14 | . . . . . . . . . . 14 Energy Bleed 1 | . . . . . . . . . . 1 Interference 1 | . . . . . . . . . . 1 Damage (major) 8 | . . . . . . . . . . 8 Damage (core) 4 | . . . . . . . . . . 4 Siege Activations . | . . . . . . . . . . . Robots Corrupted 6 | . . . . . . . . . . 6 Combat Hostiles 6 | . . . . . . . . . . 6 Parts Fried 5 | . . . . . . . . . . 5 Impact Corruptions . | . . . . . . . . . . . Robots Melted . | . . . . . . . . . . . Combat Hostiles . | . . . . . . . . . . . Parts Melted 31 | . . . . 1 11 14 2 3 . . Heat Transferred 8090 | . 555 359 37 259 2812 2298 666 962 . 142 Parts Sabotaged . | . . . . . . . . . . . Parts Stolen . | . . . . . . . . . . . Parts Stripped . | . . . . . . . . . . . Power Chain Reactions 2 | . . 1 . . . . . . . 1 Missiles Intercepted . | . . . . . . . . . . . Latent Energy Used 101 | . . . 101 . . . . . . . LE Corruption 2 | . . . 2 . . . . . . . Alert | -11 -10 -10 -10 -9 -8 -7 -7 -7 -7 -7 ------- Run | Jun Mat Min Exi Min Mat Fac Low Low Zio Dee Peak Influence 668 | . 241 141 . 214 668 278 . . . . Initial 199 | . . 19 . . 70 199 . . . . Average 119 | . 96 82 . 99 299 79 . . . . Maximum Alert Level 2 | . 1 . . 1 2 1 . . . . Low Security (%) 83 | 100 92 100 . 87 38 89 . . . . Level 1 12 | . 7 . . 12 36 10 . . . . Level 2 4 | . . . . . 24 . . . . . Level 3 . | . . . . . . . . . . . Level 4 . | . . . . . . . . . . . Level 5 . | . . . . . . . . . . . High Security . | . . . . . . . . . . . Max Security . | . . . . . . . . . . . Squads Dispatched 14 | . 3 . . . 4 7 . . . . Investigation 6 | . 3 . . . 1 2 . . . . Extermination 3 | . . . . . . 3 . . . . Reinforcement 4 | . . . . . 2 2 . . . . Assault . | . . . . . . . . . . . Garrison 1 | . . . . . 1 . . . . . Intercept . | . . . . . . . . . . . Searches Triggered . | . . . . . . . . . . . Construction Impeded 1 | . . . . . 1 . . . . . Haulers Reinforced 1 | . . . . . . 1 . . . . Active Scanning Responses . | . . . . . . . . . . . Cargo Convoy Interrupts . | . . . . . . . . . . . Stealth | -11 -10 -10 -10 -9 -8 -7 -7 -7 -7 -7 --------- Run | Jun Mat Min Exi Min Mat Fac Low Low Zio Dee Distress Signals 3 | . . . . . 3 . . . . . Communications Jammed . | . . . . . . . . . . . Distress Signals . | . . . . . . . . . . . Times Spotted 148 | . 19 6 . 10 34 20 7 6 . 46 Peak Tracking Total 37 | . 5 2 . 3 6 3 4 3 . 37 Tactical Retreats 7 | . 2 . . . 2 1 . . . 2 Traps | -11 -10 -10 -10 -9 -8 -7 -7 -7 -7 -7 ------- Run | Jun Mat Min Exi Min Mat Fac Low Low Zio Dee Traps Triggered 9 | . 4 . . . . 4 1 . . . Indirectly . | . . . . . . . . . . . Trap Hack Attempts . | . . . . . . . . . . . Triggered . | . . . . . . . . . . . Disarmed . | . . . . . . . . . . . Reprogrammed 3 | . 3 . . . . . . . . . Reused 2 | . 2 . . . . . . . . . Traps Extracted . | . . . . . . . . . . . Installed 12 | . . . . . . . 12 . . . Triggered 2 | . 2 . . . . . . . . . Machines | -11 -10 -10 -10 -9 -8 -7 -7 -7 -7 -7 ---------- Run | Jun Mat Min Exi Min Mat Fac Low Low Zio Dee Machines Disabled 14 | . 1 . . 1 4 6 . . . 2 Max in Single Turn 2 | . 1 . . . 1 2 . . . 1 Garrison Access 1 | . . . . . 1 . . . . . Machines Repaired . | . . . . . . . . . . . Machines Sabotaged . | . . . . . . . . . . . Overloaded Fab Kills . | . . . . . . . . . . . Hacking | -11 -10 -10 -10 -9 -8 -7 -7 -7 -7 -7 --------- Run | Jun Mat Min Exi Min Mat Fac Low Low Zio Dee Machines Accessed 18 | . 5 . 2 1 5 4 . . 1 . Terminals 10 | . 4 . . 1 3 2 . . . . Fabricators 2 | . . . . . . 2 . . . . Repair Stations 1 | . 1 . . . . . . . . . Recycling Units . | . . . . . . . . . . . Scanalyzers 1 | . . . . . 1 . . . . . Garrison Access 1 | . . . . . 1 . . . . . Total Hacks 69 | . 26 . 2 3 17 15 . . 6 . Successful 48 | . 16 . 2 1 11 12 . . 6 . Failed 21 | . 10 . . 2 6 3 . . . . Catastrophic 1 | . . . . . 1 . . . . . Database Lockouts . | . . . . . . . . . . . Manual 41 | . 13 . 4 3 8 9 . . 4 . Terminals 40 | . 19 . . 3 12 6 . . . . Fabricators 9 | . . . . . . 9 . . . . Repair Stations 7 | . 7 . . . . . . . . . Recycling Units . | . . . . . . . . . . . Scanalyzers 4 | . . . . . 4 . . . . . Garrison Access 1 | . . . . . 1 . . . . . Terminal Hacks 24 | . 7 . 2 1 5 3 . . 6 . Record 1 | . . . 1 . . . . . . . Part Schematic 9 | . 1 . . . 1 1 . . 6 . Robot Schematic 1 | . . . . . 1 . . . . . Robot Analysis 4 | . 1 . . 1 2 . . . . . Prototype ID Bank 2 | . 2 . . . . . . . . . Branch Access Points 2 | . . . . . 1 1 . . . . Terminal Index 2 | . 1 . . . . 1 . . . . Reprogram Traps 1 | . 1 . . . . . . . . . Hauler Manifests 1 | . 1 . . . . . . . . . EX-Prototype ID Bank 1 | . . . 1 . . . . . . . Fabricator Hacks 5 | . . . . . . 5 . . . . Network Status 1 | . . . . . . 1 . . . . Load Schematic 2 | . . . . . . 2 . . . . Build 2 | . . . . . . 2 . . . . Repair Station Hacks 6 | . 6 . . . . . . . . . Scan Component 3 | . 3 . . . . . . . . . Repair 3 | . 3 . . . . . . . . . Recycling Unit Hacks . | . . . . . . . . . . . Scanalyzer 4 | . . . . . 4 . . . . . Insert Component 2 | . . . . . 2 . . . . . Analyze 2 | . . . . . 2 . . . . . Garrison Access Hacks 1 | . . . . . 1 . . . . . Seal Access 1 | . . . . . 1 . . . . . Unauthorized Hacks 8 | . 3 . . . 1 4 . . . . Terminals 6 | . 3 . . . 1 2 . . . . Botnet 6 | . 3 . . . 1 2 . . . . Fabricators 2 | . . . . . . 2 . . . . Liberate 1 | . . . . . . 1 . . . . Fabnet 1 | . . . . . . 1 . . . . Repair Stations . | . . . . . . . . . . . Recycling Units . | . . . . . . . . . . . Scanalyzers . | . . . . . . . . . . . Garrison Access . | . . . . . . . . . . . Data Cores Recovered . | . . . . . . . . . . . Used . | . . . . . . . . . . . Hacking Detections 14 | . 5 . . 1 4 4 . . . . Full Trace Events 4 | . 1 . . . 1 2 . . . . Feedback Events . | . . . . . . . . . . . Feedback Blocked . | . . . . . . . . . . . Robot Schematics Acquired 5 | . . . . . 1 . . . 4 . Robots Built 2 | . . . . . . 2 . . . . Authchips . | . . . . . . . . . . . Time 99 | . . . . . . 99 . . . . Total Robot Build Rating 4 | . . . . . . 4 . . . . Part Schematics Acquired 26 | . 1 . . . 3 1 . . 21 . Parts Built 1 | . . . . . . 1 . . . . Authchips . | . . . . . . . . . . . Time 42 | . . . . . . 42 . . . . Total Part Build Rating 4 | . . . . . . 4 . . . . Parts Repaired 3 | . 3 . . . . . . . . . Time 96 | . 96 . . . . . . . . . Parts Recycled . | . . . . . . . . . . . Recycled Matter . | . . . . . . . . . . . Retrieved Matter . | . . . . . . . . . . . Retrieved Components . | . . . . . . . . . . . Parts Scanalyzed 2 | . . . . . 2 . . . . . Part Schematics Acquired 2 | . . . . . 2 . . . . . Parts Damaged . | . . . . . . . . . . . Bothacking | -11 -10 -10 -10 -9 -8 -7 -7 -7 -7 -7 ------------ Run | Jun Mat Min Exi Min Mat Fac Low Low Zio Dee Used RIF Installer . | . . . . . . . . . . . Robots Hacked . | . . . . . . . . . . . Non-combat . | . . . . . . . . . . . Combat . | . . . . . . . . . . . Robot Hacks Applied . | . . . . . . . . . . . Relay Couplers Released 1 | . . . . . 1 . . . . . Machine Destruction 1 | . . . . . 1 . . . . . Fabnet Peak Effective % . | . . . . . . . . . . . Robots Rewired 5 | . . . 5 . . . . . . . Allies Hacked . | . . . . . . . . . . . Hacks Repelled . | . . . . . . . . . . . Allies | -11 -10 -10 -10 -9 -8 -7 -7 -7 -7 -7 -------- Run | Jun Mat Min Exi Min Mat Fac Low Low Zio Dee Total Allies 15 | . . 5 5 . . 2 . . 3 . Largest Group 7 | . . 4 7 7 3 2 . . 3 3 Highest-Rated Group 92 | . . 85 90 90 50 30 . . 92 92 Highest-Rated Ally 33 | . . 31 31 21 21 15 . . 33 33 Total Orders 2 | . . . 2 . . . . . . . STAY 1 | . . . 1 . . . . . . . FOLLOW 1 | . . . 1 . . . . . . . Ally Attacks 133 | . . 30 . 24 13 13 . . . 53 Total Damage 2123 | . . 335 . 342 210 238 . . . 998 Kills 20 | . . 2 . 5 4 2 . . . 7 Allies Corrupted . | . . . . . . . . . . . Allies Melted . | . . . . . . . . . . . Intel | -11 -10 -10 -10 -9 -8 -7 -7 -7 -7 -7 ------- Run | Jun Mat Min Exi Min Mat Fac Low Low Zio Dee Robot Analysis Total 4 | . 1 . . 1 2 . . . . . Derelict Logs Recovered 6 | . . 3 . . . . 2 1 . . Drone Launches . | . . . . . . . . . . . Drone Recoveries . | . . . . . . . . . . . Exploration | -11 -10 -10 -10 -9 -8 -7 -7 -7 -7 -7 ------------- Run | Jun Mat Min Exi Min Mat Fac Low Low Zio Dee Turns Passed 14244 | 1 1025 707 1760 291 927 2726 823 1323 2487 2174 Spaces Moved 5458 | 1 483 385 953 155 319 1013 311 518 1009 311 Core 1 | . . . . . . . . . . 1 Treads 5208 | . 235 385 953 155 319 1013 311 518 1009 310 Legs 249 | 1 248 . . . . . . . . . Wheels . | . . . . . . . . . . . Hover . | . . . . . . . . . . . Flight . | . . . . . . . . . . . Fastest Speed 120 | 120 120 160 160 160 160 245 245 245 245 150 Average Speed 215 | 120 164 160 175 160 217 245 245 245 245 246 Slowest Speed 400 | 120 190 160 240 160 245 245 245 245 245 400 Overloaded Moves . | . . . . . . . . . . . Propulsion Burnouts . | . . . . . . . . . . . Robots Hopped . | . . . . . . . . . . . Cave-ins Triggered . | . . . . . . . . . . . Exploration Rate (%) 56 | 2 82 74 92 40 40 24 57 69 79 60 Regions Visited 10 Branch Regions 7 Pre-discovered Areas 1 | . . . 1 . . . . . . . Known Exits Taken 3 | . . . . . 1 1 1 . . . Unknown Exits Taken 7 | 1 1 1 1 1 . . . 1 1 . Scrap Searched 13 | . . 3 . 1 . . 5 2 2 . Spaces Dug . | . . . . . . . . . . . Terrain Destroyed 187 | . . 7 1 . 63 48 29 3 . 36 Melee . | . . . . . . . . . . . Projectile 13 | . . . . . 9 . 1 3 . . AOE 174 | . . 7 1 . 54 48 28 . . 36 Terrain Rammed . | . . . . . . . . . . . Walls Destroyed . | . . . . . . . . . . . Machines Disabled . | . . . . . . . . . . . Actions | -11 -10 -10 -10 -9 -8 -7 -7 -7 -7 -7 --------- Run | Jun Mat Min Exi Min Mat Fac Low Low Zio Dee Total 7562 | 2 672 464 1039 183 448 1190 350 541 1024 1649 Wait 1608 | . 139 59 32 14 14 89 9 . 4 1248 Move 5448 | . 482 384 952 154 318 1012 310 517 1008 311 Hop . | . . . . . . . . . . . Pick Up 67 | . 12 9 8 2 15 9 1 1 1 9 Fast Attach 29 | . 4 . 2 1 5 7 1 2 4 3 Attach 24 | . 3 1 2 . 7 2 . . . 9 Detach 5 | . 1 . . . . 1 . . 1 2 Swap 45 | . 3 . 7 . 12 9 2 . . 12 Drop 79 | 2 7 3 9 3 19 14 2 3 5 12 Fire 209 | . 21 8 1 8 57 40 13 18 . 43 Melee 1 | . . . . . . . . . 1 . Ram . | . . . . . . . . . . . Kick . | . . . . . . . . . . . Crush 5 | . . . . 1 1 3 . . . . Escape Stasis 4 | . . . . . . 4 . . . . Rewire 26 | . . . 26 . . . . . . . Trap 12 | . . . . . . . 12 . . . Miscellaneous . | . . . . . . . . . . . Route ------- -11/Junkyard -10/Materials (discovered 3 exits: [*Mat x2] / [*Min]) -10/Mines (discovered 2 exits: [*Mat] / *Exi) -10/Exiles (discovered 2 exits: *Min x2) -9/Mines -8/Materials (discovered 4 exits: *Fac x3 / *Sto) -7/Factory (discovered 2 exits: *Low x2) -7/Lower Caves -7/Lower Caves -7/Zion -7/Deep Caves History --------- Turn | Location | Event 2 | -11/Junkyard | Discovered new exit (range 0) 2 | -11/Junkyard | Entered Materials 187 | -10/Materials | Repaired Particle Gun 226 | -10/Materials | Repaired Imp. Heat Sink 254 | -10/Materials | Repaired EM Pulse Gun 520 | -10/Materials | Build established: Scavenger-Mutant 609 | -10/Materials | Discovered new exit (range 10) 755 | -10/Materials | Discovered new exit (range 7) 989 | -10/Materials | Discovered new exit (range 13) 1027 | -10/Materials | Entered Mines 1083 | -10/Mines | Assisted by bots powering up and referring to "LRC-V3" 1130 | -10/Mines | Learned Materials terminal intel 1173 | -10/Mines | Discovered new exit (range 11) 1205 | -10/Mines | Joined a pair of Derelicts in attacking an 0b10 outpost 1444 | -10/Mines | Learned 2 Materials zone layouts 1675 | -10/Mines | Learned 8 Materials zone layouts 1719 | -10/Mines | Deemed a non-threat by the Exiles lab entrance 1721 | -10/Mines | Discovered new exit (range 5) 1734 | -10/Mines | Entered Exiles 1734 | -10/Exiles | Found Exiles lab destroyed 1734 | -10/Exiles | Accompanied by 4 allies 1758 | -10/Exiles | Discovered new exit (range 14) 1764 | -10/Exiles | Led the pair of lost Derelicts to a safe place 2031 | -10/Exiles | Learned location of Zion (-7) 2109 | -10/Exiles | Opened EX-Vault 2119 | -10/Exiles | Found Latent Energy Streamer 2316 | -10/Exiles | Build established: Commander-Mutant 3479 | -10/Exiles | Discovered new exit (range 10) 3494 | -10/Exiles | Entered Mines 3494 | -9/Mines | Accompanied by 7 allies 3549 | -9/Mines | A weapon hastily lodged in a ceiling crevice suddenly fell to the ground 3741 | -9/Mines | Discovered new exit (range 11) 3785 | -9/Mines | Entered Materials 3785 | -8/Materials | Accompanied by 3 allies 3785 | -8/Materials | Evolved 4 slots: Utility x4 3786 | -8/Materials | Identified exit to Factory 3787 | -8/Materials | Loaded intel: 11 terminal locations 3810 | -8/Materials | Discovered new exit (range 13) 3864 | -8/Materials | Identified exit to Storage 4143 | -8/Materials | Build established: Hacker-Mutant 4484 | -8/Materials | Garrison activated, responded to threat 4613 | -8/Materials | Discovered exit to Factory (range 16) 4712 | -8/Materials | Entered Factory 4712 | -7/Factory | Evolved 2 slots: Power x1, Utility x1 5335 | -7/Factory | Fabricated Mak. Hacking Suite (x1) 5840 | -7/Factory | Fabricated Y-45 Defender? 6035 | -7/Factory | Identified exit to Lower Caves 7438 | -7/Factory | Entered Lower Caves 7793 | -7/Lower Caves | Attracted the attention of an 0b10 checkpoint 7867 | -7/Lower Caves | Learned Factory terminal intel 7870 | -7/Lower Caves | Identified exit to Lower Caves 8035 | -7/Lower Caves | Encountered a Warlord checkpoint 8261 | -7/Lower Caves | Entered another Lower Caves area 8410 | -7/Lower Caves | Encountered a Warlord checkpoint 8566 | -7/Lower Caves | Learned Factory terminal intel 8715 | -7/Lower Caves | Spotted B-75 Beast 9547 | -7/Lower Caves | Discovered new exit (range 15) 9584 | -7/Lower Caves | Entered Zion 9747 | -7/Zion | System corruption cleaned by Quarantine Array 10680 | -7/Zion | Acquired unknown access codes intercepted by a Zionite 10859 | -7/Zion | Found Prototype Launcher 10859 | -7/Zion | Identified Rocket Array 11675 | -7/Zion | Gained Derelict followers 12021 | -7/Zion | Opened final containment barrier to the Deep Caves 12060 | -7/Zion | Discovered new exit (range 3) 12060 | -7/Zion | Saw the warning signs outside the Deep Caves entrance 12071 | -7/Zion | Entered Deep Caves 12071 | -7/Deep Caves | Accompanied by 3 allies 12259 | -7/Deep Caves | Z-Facility disabled 12282 | -7/Deep Caves | Attacked by Z-Imprinter 12312 | -7/Deep Caves | Destroyed Z-Imprinter 12343 | -7/Deep Caves | Lost 3 parts (1n2u) 12542 | -7/Deep Caves | System corruption reached 10% 14026 | -7/Deep Caves | Spotted as-95562 14042 | -7/Deep Caves | Destroyed as-95562 14125 | -7/Deep Caves | Triggered Deep Caves wall 14125 | -7/Deep Caves | Spotted AS-17489 14126 | -7/Deep Caves | Spotted AS-03217 14126 | -7/Deep Caves | Destroyed AS-03217 14130 | -7/Deep Caves | Exposed GOLEM chamber 14137 | -7/Deep Caves | Destroyed AS-17489 14158 | -7/Deep Caves | Destroyed 35 combat bots 14217 | -7/Deep Caves | Found GOLEM Unit 14221 | -7/Deep Caves | Spotted as-64785 14235 | -7/Deep Caves | Destroyed as-64785 14237 | -7/Deep Caves | Core integrity fell below 50% 14241 | -7/Deep Caves | Core integrity fell below 20% 14246 | -7/Deep Caves | Core destroyed Last Messages --------------- 14237_ Overheating: Core damaged (-91). 14238_ Overheating: Zio. Light DM Reactor damaged (-16). 14238_ Overheating: Mak. Hacking Suite damaged (-5). 14238_ Overheating: Zio. Light DM Reactor damaged (-55). 14238_ Overheating: Imp. EM Pulse Cannon damaged (-16). 14238_ GOLEM Unit springs to life. 14239_ Overheating: Core damaged (-70). 14239_ as-41755 GOLEM Unit beginning Prototype Leg integration. 14241_ Overheating: Core damaged (-133). 14242_ Dropped Hcp. Storage Unit. 14242_ Dropped Zio. Light DM Reactor. 14243_ Overheating: System interference. 14243_ Imp. EM Pulse Cannon temporarily disabled. 14243_ QMA5WJI8B9D0RUCFZKV508=DJEO,A 14243_ Dropped Zio. Light DM Reactor. 14243_ Dropped Imp. Shield Generator. 14243_ Imp. Shield Generator crushed and broken. 14244_ Dropped Lgt. Treads. 14244_ Lgt. Treads crushed and broken. 14246_ Overheating: Core damaged (-91). Map ----- +----------------------------------------------------+ | ?????????????????????????????????? | | ?????????????????????????????????? | | ?????????????????????????????????? | | ?????????????????????????????????? | | ?????????????????????????????????? | | ???????????? ????????????????? | | ?????????? ???????????? | | ????????? ?????????? | | ????????? ????????? | | ?????????" ??????? | | ?????????" #??????? | | ?????????"b = ????????# | | ?????????" % #??##???## | | ????????"" = #?? #???# | | ??????### = g ### ###?# | | ??""""" # ??# | | ??" ##??# | | ??" #### | | ??" ! # | | ??" ! g! #?# | | ??" ! ##?# | | ??"! M #?# | | ??" ! ! ! #?# | | ??""""" !]!! [ * #?# | | ??????###!!%* #?# | | ???????"G@!!] ! #?# | | ???????"!"!] g * ### | | ???????"""*] ## | | ?????????" ### | | ?????????" [ "## | | ????????# h / #### | | ????????" M / #?## | | ????????" ### | | ????????" % / | | ????????""" | | ????????" * / | | ?????????" M ## | | ????????? ## | | ?????????" ### | | ?????????? # # #?# # | | ?????????? #### ## ## ##?#### | | ??????????" ##???# ?# ?###?????? | | ??????????? ??????##?# ?????????? | | ???????????????????????#?????????? | | | | | | | | | | | | | +----------------------------------------------------+ Best States ------------- Heat Dissipation 61 Energy Generation 49 Energy Capacity 450 Matter Stores 300 Matter Capacity 300 Sight Range 16 Terrain Scan Density 10 Armor Coverage 625 Resistance: KI 20 Resistance: TH 20 Resistance: EX 20 Resistance: EM 20 Resistance: I 20 Resistance: S 20 Resistance: P 20 Evasion (%) 55 Targeting Accuracy 8 Recoil Reduction 2 Particle Charging 15 Salvage Targeting 4 Offensive Hacking 32 Defensive Hacking 21 Item Schematics ----------------- Lgt. Armor Plating | -10/Materials | Hacked Mak. Hacking Suite | -8/Materials | Scanalyzed Mak. System Shield | -8/Materials | Scanalyzed Shield Generator | -8/Materials | Hacked Hcp. Storage Unit | -7/Factory | Hacked Imp. Heavy Armor Plating | -7/Zion | Archive Imp. Deuterium Engine | -7/Zion | Archive Mak. Cloaking Device | -7/Zion | Archive Imp. Carbon-fiber Leg | -7/Zion | Archive Focal Shield | -7/Zion | Archive Spear | -7/Zion | Archive Adv. Sensor Array | -7/Zion | Archive Core Analyzer | -7/Zion | Archive Mass Driver | -7/Zion | Archive Imp. Weapon Cycler | -7/Zion | Archive Component Analysis Suite | -7/Zion | Archive Adv. Terrain Scanner | -7/Zion | Archive Imp. Field Recycling Unit | -7/Zion | Archive Proton Missile Launcher | -7/Zion | Archive Imp. Reaction Control System | -7/Zion | Archive Hvy. Beamcaster | -7/Zion | Free Battle Rifle | -7/Zion | Free Barrage Gun | -7/Zion | Free Battle Cannon | -7/Zion | Free Slug Cannon | -7/Zion | Free Flamer | -7/Zion | Free Robot Schematics ------------------ Y-45 Defender | -8/Materials | Hacked L-31 Rogue | -7/Zion | Archive G-47 Trooper | -7/Zion | Archive B-48 Gladiator | -7/Zion | Archive X-82 Rainmaker | -7/Zion | Archive Fabricated ------------ Mak. Hacking Suite | x1 | -7/Factory Y-45 Defender | x2 | -7/Factory Alien Tech Used ----------------- None Achievements -------------- None Challenges ------------ None Game ------ Seed AntimissileWardroneClaymores Manual? 0 Play Time 01:16:04 Cumulative 187.5 hours Start 2023.05.28 @ 16:37:45 End 2023.05.28 @ 18:14:23 Sessions 1 Manual Loads 0 Difficulty Adventurer Special Mode None Game No. 148 Rogue 63 Adventurer 59 Explorer 26 Win Type - Total 1 Types 1/0/0/0/0/0/0/0/0 Lore% 56 Gallery% 68 Achievement% 67 Wizard Run 0 Options --------- ASCII 0 Keyboard 0 Movement Mouse Keybinds 0 Fullscreen 0 Font 16/Smallcaps Map View 76x50 Tactical HUD 1 Map Filters NONE Filters BRIGHTNESS(115)|SATURATION(100)|LOW_CONTRAST(0,16,30) Steam 1 RUN: 5c9118c6-1ab5-4788-ad71-1b779cbdba1b